bitfinex-derivatives/quotes_SOLF0:USTF0_20241025
["timestamp","ask_amount","ask_price","bid_price","bid_amount"]
[1729863750526,4.48,173.51,173.41,13.83276617]
[1729863751126,4.48,173.51,173.41,17.61254829]
[1729863751327,4.48,173.51,173.41,13.83276617]
[1729863751718,4.48,173.51,173.48,2.8833]
[1729863752123,4.48,173.51,173.41,13.83276617]
[1729863752525,3.7184,173.53,173.4,7.0403]
[1729863752526,8.1984,173.53,173.43,13.83276617]
[1729863752731,8.1984,173.53,173.43,18.31276617]
[1729863752929,2.4778,173.53,173.45,13.83276617]
[1729863753235,1.1969,173.53,173.45,13.83276617]
[1729863753530,1.1969,173.53,173.51,2.8828]
[1729863753723,4.48,173.54,173.45,13.83276617]
[1729863753923,4.48,173.54,173.48,13.83276617]
[1729863754127,4.48,173.56,173.48,13.83276617]
[1729863754929,5.7075,173.58,173.48,13.83276617]
[1729863755630,2.8819,173.57,173.48,13.83276617]
[1729863756932,5.7075,173.58,173.54,2.8823]
[1729863758336,2.8819,173.57,173.54,2.8823]
[1729863760029,16.71466617,173.57,173.54,2.8823]
[1729863760338,13.83276617,173.55,173.46,1.1876]
[1729863760539,13.83276617,173.55,173.45,13.83276617]
[1729863760830,2.8826,173.53,173.45,13.83276617]
[1729863761432,2.8826,173.53,173.49,2.8832]
[1729863761821,4.48,173.54,173.45,13.83276617]
[1729863762022,13.83276617,173.53,173.43,13.83276617]
[1729863762227,13.83276617,173.51,173.41,2.5466]
[1729863762432,2.8832,173.5,173.41,6.9266]
[1729863762627,13.83276617,173.51,173.46,2.8836]
[1729863762937,4.38,173.53,173.44,13.83276617]
[1729863763323,4.38,173.53,173.49,2.8831]
[1729863763736,7.2627,173.53,173.49,2.8831]
[1729863764535,2.8828,173.52,173.49,2.8831]
[1729863764742,18.21276617,173.53,173.42,13.83276617]
[1729863764939,13.83276617,173.51,173.46,2.8836]
[1729863765232,13.83276617,173.51,173.41,6.9266]
[1729863765233,2.8834,173.49,173.41,6.9266]
[1729863765442,13.83276617,173.48,173.43,2.8842]
[1729863765625,2.8837,173.47,173.43,2.8842]
[1729863765830,2.8837,173.47,173.44,2.8841]
[1729863766732,13.83276617,173.48,173.44,2.8841]
[1729863767037,16.71626617,173.48,173.44,2.8841]
[1729863767238,16.71626617,173.48,173.44,2.884]
[1729863767626,13.83276617,173.46,173.38,3.78657265]
[1729863767832,13.83276617,173.43,173.37,3.78657265]
[1729863768034,4.38,173.43,173.37,3.78657265]
[1729863768328,13.83276617,173.41,173.37,6.67177265]
[1729863768837,21.09716617,173.43,173.34,3.78657265]
[1729863769033,21.09716617,173.43,173.31,76.07276617]
[1729863769034,13.83276617,173.41,173.36,2.8853]
[1729863769239,16.71736617,173.41,173.33,8.16657265]
[1729863769538,16.71736617,173.41,173.37,2.8851]
[1729863770041,16.71736617,173.41,173.31,13.83276617]
[1729863770046,13.83276617,173.41,173.36,2.8853]
[1729863770230,13.83276617,173.41,173.35,3.78657265]
[1729863770627,7.2644,173.43,173.39,2.8848]
[1729863770932,7.2644,173.43,173.35,3.78657265]
[1729863770933,19.51456617,173.44,173.36,18.21276617]
[1729863771131,19.51456617,173.44,173.36,4.38]
[1729863771438,22.39866617,173.44,173.4,2.8846]
[1729863771742,5.6818,173.44,173.37,3.78657265]
[1729863771930,5.6818,173.44,173.42,2.8844]
[1729863772134,15.01956617,173.45,173.37,3.78657265]
[1729863772333,4.38,173.45,173.38,3.78657265]
[1729863772534,13.83276617,173.47,173.37,5.04442527]
[1729863772734,18.21276617,173.47,173.38,3.79196069]
[1729863772937,18.21276617,173.47,173.37,1.2519]
[1729863773131,21.09646617,173.47,173.43,2.8842]
[1729863773640,7.2637,173.47,173.43,2.8842]
[1729863774529,2.4883,173.5,173.4,3.79213702]
[1729863774735,13.83276617,173.48,173.43,2.8843]
[1729863775337,2.8837,173.47,173.42,2.8844]
[1729863775932,13.83276617,173.48,173.42,2.8844]
[1729863776144,13.83276617,173.45,173.42,2.8844]
[1729863778941,13.83276617,173.45,173.4,3.79611656]
[1729863779141,13.83276617,173.45,173.38,3.79611656]
[1729863779336,13.83276617,173.45,173.34,18.21276617]
[1729863779337,13.83276617,173.43,173.34,18.21276617]
[1729863779643,13.83276617,173.41,173.38,2.8849]
[1729863780633,2.8844,173.42,173.38,2.8849]
[1729863780845,21.09666617,173.45,173.41,2.8845]
[1729863781142,21.09666617,173.45,173.36,3.80048025]
[1729863781143,18.21276617,173.45,173.36,3.80048025]
[1729863781341,18.21276617,173.45,173.37,3.80048025]
[1729863781640,18.21276617,173.45,173.38,3.80048025]
[1729863781942,4.38,173.46,173.39,3.80048025]
[1729863782132,18.21276617,173.47,173.4,3.80048025]
[1729863782337,21.09646617,173.47,173.43,2.8841]
[1729863782637,18.21276617,173.47,173.43,2.8841]
[1729863782842,18.21276617,173.47,173.38,13.83276617]
[1729863782843,2.8838,173.46,173.42,2.8844]
[1729863783542,2.8838,173.46,173.38,13.83276617]
[1729863783740,2.8838,173.46,173.42,2.8843]
[1729863784539,14.22276617,173.45,173.38,3.80089181]
[1729863784845,2.8841,173.44,173.4,2.8846]
[1729863785031,2.8841,173.44,173.37,4.38]
[1729863785232,14.22276617,173.45,173.38,3.80154308]
[1729863785438,14.22276617,173.45,173.39,3.80154308]
[1729863785744,14.22276617,173.45,173.37,4.38]
[1729863785745,13.83276617,173.43,173.37,4.38]
[1729863785941,13.83276617,173.43,173.4,2.8846]
[1729863787043,13.83276617,173.43,173.35,4.38]
[1729863787345,18.21276617,173.43,173.36,3.80158804]
[1729863787541,18.21276617,173.43,173.37,3.80158804]
[1729863787743,2.8847,173.41,173.38,3.80158804]
[1729863788041,2.8847,173.41,173.37,2.8852]
[1729863788042,16.71746617,173.41,173.37,2.8852]
[1729863788441,13.83276617,173.39,173.32,4.38]
[1729863788637,21.09776617,173.39,173.35,2.8856]
[1729863788837,21.09776617,173.39,173.32,4.38]
[1729863788838,18.21276617,173.39,173.32,4.38]
[1729863789038,18.21276617,173.39,173.34,2.8857]
[1729863789235,18.21276617,173.39,173.35,3.80274008]
[1729863789433,18.21276617,173.39,173.32,4.38]
[1729863789434,13.83276617,173.37,173.27,13.83276617]
[1729863789641,2.8855,173.36,173.33,3.80363116]
[1729863789846,2.8855,173.36,173.28,8.18363116]
[1729863790249,13.83276617,173.35,173.29,3.8042231]
[1729863790443,1.3001,173.36,173.3,3.8042231]
[1729863790647,13.83276617,173.37,173.31,3.80275627]
[1729863790949,13.83276617,173.37,173.34,2.8856]
[1729863792039,7.2651,173.38,173.28,3.80265219]
[1729863792244,7.2651,173.38,173.29,3.80265219]
[1729863792447,7.2651,173.38,173.3,3.80265219]
[1729863792745,4.38,173.38,173.34,2.8856]
[1729863792949,13.83276617,173.35,173.27,4.5]
[1729863793545,13.83276617,173.35,173.32,2.886]
[1729863794150,13.83276617,173.35,173.29,3.80110296]
[1729863794346,13.83276617,173.35,173.28,3.80110296]
[1729863794650,13.83276617,173.31,173.25,3.80110296]
[1729863794848,4.5,173.34,173.25,3.80110296]
[1729863794849,13.83276617,173.29,173.25,3.80110296]
[1729863795042,4.5,173.32,173.19,3.80110296]
[1729863795243,13.83276617,173.3,173.2,17.63386913]
[1729863795442,18.33276617,173.3,173.21,3.80110296]
[1729863795639,18.33276617,173.3,173.22,3.80110296]
[1729863795848,18.33276617,173.3,173.21,3.80110296]
[1729863796045,18.33276617,173.3,173.2,18.33276617]
[1729863796247,18.33276617,173.3,173.21,3.79758931]
[1729863796550,7.3864,173.3,173.21,3.79758931]
[1729863796852,4.5,173.3,173.21,3.79758931]
[1729863797048,4.5,173.3,173.21,7.59309349]
[1729863797351,18.33276617,173.31,173.21,3.79550418]
[1729863797539,21.21916617,173.31,173.21,3.79550418]
[1729863797743,13.83276617,173.31,173.27,2.8869]
[1729863798836,16.71906617,173.31,173.27,2.8869]
[1729863799350,13.83276617,173.29,173.26,2.887]
[1729863799650,13.83276617,173.29,173.21,4.5]
[1729863800147,13.83276617,173.31,173.21,22.12271321]
[1729863800349,15.12186617,173.33,173.23,13.83276617]
[1729863800538,2.8861,173.32,173.28,2.8867]
[1729863801348,15.12186617,173.33,173.29,2.8866]
[1729863801549,19.62186617,173.33,173.24,3.78676043]
[1729863801752,19.62186617,173.33,173.24,3.78686486]
[1729863801950,19.62186617,173.33,173.23,13.83276617]
[1729863802149,13.83276617,173.31,173.22,3.78693984]
[1729863802449,13.83276617,173.29,173.26,2.887]
[1729863803547,16.71976617,173.27,173.23,2.8875]
[1729863803850,16.71976617,173.27,173.19,13.83276617]
[1729863804249,16.71976617,173.27,173.23,2.8875]
[1729863804445,2.8875,173.24,173.18,3.78495486]
[1729863804642,13.83276617,173.27,173.23,2.8875]
[1729863804848,13.83276617,173.27,173.17,20.68976617]
[1729863805049,2.8874,173.25,173.17,20.68976617]
[1729863805357,2.8874,173.25,173.22,2.8877]
[1729863805747,13.83276617,173.27,173.22,2.8877]
[1729863805950,13.83276617,173.27,173.17,20.68976617]
[1729863806656,1.263,173.28,173.17,19.50856617]
[1729863806860,13.83276617,173.25,173.17,5.6758]
[1729863807055,18.33276617,173.25,173.17,5.6758]
[1729863807249,18.33276617,173.25,173.21,2.8879]
[1729863807250,21.22016617,173.25,173.21,2.8879]
[1729863808956,13.83276617,173.25,173.24,2.8874]
[1729863809159,5.7363,173.26,173.17,15.00856617]
[1729863809466,8.6234,173.26,173.19,2.8881]
[1729863809755,8.6234,173.26,173.17,15.00856617]
[1729863810154,8.6234,173.26,173.22,2.8876]
[1729863810360,2.8875,173.24,173.15,17.61099412]
[1729863810556,5.7363,173.26,173.15,17.61099412]
[1729863810755,13.83276617,173.24,173.21,2.8878]
[1729863811349,13.83276617,173.24,173.22,2.8876]
[1729863811765,13.83276617,173.24,173.15,22.11099412]
[1729863811960,16.72026617,173.24,173.21,2.8878]
[1729863812155,13.83276617,173.24,173.21,2.8878]
[1729863812355,13.83276617,173.24,173.22,2.8877]
[1729863813255,13.83276617,173.24,173.15,8.27822795]
[1729863813456,16.72026617,173.24,173.15,3.77822795]
[1729863814154,16.72026617,173.24,173.21,2.8879]
[1729863814660,13.83276617,173.23,173.21,2.8879]
[1729863814963,13.83276617,173.23,173.15,3.77822795]
[1729863816060,5.7363,173.26,173.15,3.77822795]
[1729863816061,1.2363,173.26,173.15,3.77822795]
[1729863816360,21.22006617,173.25,173.15,3.77822795]
[1729863816662,21.22006617,173.25,173.14,18.33276617]
[1729863818161,18.33276617,173.25,173.14,18.33276617]
[1729863818365,18.33276617,173.25,173.21,2.8878]
[1729863818366,2.8874,173.24,173.21,2.8878]
[1729863819460,2.8874,173.24,173.22,2.8876]
[1729863819461,4.5,173.24,173.22,2.8876]
[1729863820656,4.5,173.24,173.14,18.33276617]
[1729863820657,13.83276617,173.23,173.14,4.5]
[1729863821465,13.83276617,173.23,173.12,19.61136617]
[1729863821661,13.83276617,173.23,173.13,4.5]
[1729863821863,16.72046617,173.23,173.2,2.888]
[1729863822268,8.87748748,173.21,173.2,2.888]
[1729863823871,11.76558748,173.21,173.18,2.8884]
[1729863824066,8.87748748,173.19,173.18,2.8884]
[1729863824966,8.87748748,173.2,173.19,2.8883]
[1729863826575,1.2363,173.26,173.19,8.87748748]
[1729863826782,1.2363,173.26,173.11,1.2749]
[1729863826783,8.87748748,173.24,173.2,8.87748748]
[1729863827263,1.2363,173.26,173.23,2.8876]
[1729863827473,1.2363,173.26,173.2,8.87748748]
[1729863827474,10.11378748,173.26,173.21,8.87748748]
[1729863827667,4.6,173.29,173.21,8.87748748]
[1729863827873,8.87748748,173.26,173.25,2.8873]
[1729863828269,13.86123165,173.28,173.25,2.8873]
[1729863828671,15.07043165,173.28,173.25,2.8873]
[1729863829272,17.95723165,173.28,173.25,2.8873]
[1729863830081,15.07043165,173.28,173.26,2.887]
[1729863830776,15.07043165,173.28,173.19,1.2942]
[1729863830777,13.86123165,173.3,173.27,2.8869]
[1729863830979,18.46123165,173.3,173.27,2.8869]
[1729863831174,13.86123165,173.3,173.2,13.86123165]
[1729863831874,13.86123165,173.3,173.27,2.8868]
[1729863833479,13.86123165,173.3,173.25,2.8872]
[1729863833480,2.8867,173.29,173.25,2.8872]
[1729863833776,13.86123165,173.26,173.19,2.5454]
[1729863833981,16.74843165,173.26,173.22,2.8877]
[1729863834376,13.86123165,173.26,173.22,2.8877]
[1729863834877,13.86123165,173.26,173.21,2.8879]
[1729863835178,13.86123165,173.24,173.16,4.6]
[1729863835768,0.39,173.23,173.16,4.6]
[1729863836375,3.2776,173.23,173.2,2.888]
[1729863837272,13.86123165,173.22,173.14,4.6]
[1729863838180,16.74933165,173.2,173.17,2.8885]
[1729863840383,13.86123165,173.2,173.17,2.8885]
[1729863840779,2.8883,173.19,173.15,2.8888]
[1729863841386,13.86123165,173.18,173.08,13.86123165]
[1729863841681,13.86123165,173.16,173.08,4.6]
[1729863841882,16.75003165,173.16,173.13,2.8891]
[1729863842279,16.75003165,173.16,173.08,4.6]
[1729863842280,13.86123165,173.16,173.08,4.6]
[1729863842484,13.86123165,173.16,173.14,2.8889]
[1729863843283,13.86123165,173.16,173.13,2.8892]
[1729863843889,13.86123165,173.16,173.1,2.8897]
[1729863844081,13.86123165,173.16,173.08,4.6]
[1729863845084,13.86123165,173.18,173.08,4.6]
[1729863845281,13.86123165,173.18,173.09,13.86123165]
[1729863845584,13.86123165,173.18,173.16,2.8887]
[1729863845785,13.86123165,173.18,173.09,15.13483165]
[1729863846291,2.8886,173.17,173.14,2.889]
[1729863846492,13.86123165,173.18,173.14,2.889]
[1729863846691,13.86123165,173.18,173.09,19.73483165]
[1729863847691,13.86123165,173.18,173.15,2.8888]
[1729863848390,8.88121007,173.16,173.15,2.8888]
[1729863848888,7.4881,173.2,173.17,2.8884]
[1729863849096,8.88121007,173.18,173.17,2.8884]
[1729863849799,8.88121007,173.18,173.09,5.8736]
[1729863849800,8.88121007,173.18,173.16,2.8887]
[1729863849994,8.88121007,173.17,173.16,2.8887]
[1729863850494,7.488,173.21,173.11,8.88121007]
[1729863850694,8.88121007,173.17,173.13,8.88121007]
[1729863850997,1.1814,173.24,173.13,8.88121007]
[1729863850998,8.88121007,173.19,173.15,8.88121007]
[1729863851201,8.88121007,173.18,173.14,8.88121007]
[1729863851400,8.88121007,173.2,173.15,8.88121007]
[1729863851594,8.88121007,173.2,173.19,2.8883]
[1729863851908,8.88121007,173.22,173.17,8.88121007]
[1729863852101,8.88121007,173.21,173.2,2.8881]
[1729863854600,8.88121007,173.22,173.17,13.42121007]
[1729863854801,8.88121007,173.22,173.19,8.88121007]
[1729863855304,8.88121007,173.24,173.22,2.8877]
[1729863855700,8.88121007,173.23,173.22,2.8877]
[1729863856395,8.88121007,173.24,173.19,8.88121007]
[1729863857507,8.88121007,173.24,173.22,2.8877]
[1729863858009,8.88121007,173.23,173.17,13.42121007]
[1729863858205,8.88121007,173.23,173.21,2.8879]
[1729863860806,8.88121007,173.23,173.19,8.88121007]
[1729863861007,8.88121007,173.21,173.19,2.8881]
[1729863861411,8.88121007,173.21,173.17,13.42121007]
[1729863861709,8.88121007,173.21,173.2,2.8881]
[1729863862809,8.88121007,173.21,173.15,13.42121007]
[1729863863007,8.88121007,173.2,173.15,13.42121007]
[1729863863215,8.88121007,173.2,173.16,3.80775234]
[1729863864308,8.88121007,173.18,173.17,3.80775234]
[1729863864515,8.88121007,173.18,173.13,3.80775234]
[1729863864719,8.88121007,173.17,173.14,3.80775234]
[1729863864905,8.88121007,173.17,173.15,3.80775234]
[1729863865102,8.88121007,173.17,173.16,2.8886]
[1729863865310,4.54,173.23,173.16,3.80948724]
[1729863865513,8.88121007,173.21,173.17,3.80964392]
[1729863865707,8.88121007,173.21,173.16,8.88121007]
[1729863865907,8.88121007,173.17,173.06,1.222]
[1729863866108,8.88121007,173.15,173.1,17.23085699]
[1729863866308,8.88121007,173.15,173.11,3.80964692]
[1729863866508,4.54,173.23,173.15,2.8889]
[1729863866509,8.88121007,173.16,173.15,2.8889]
[1729863866811,9.27121007,173.16,173.15,2.8889]
[1729863867709,9.27121007,173.16,173.14,2.889]
[1729863867909,8.88121007,173.15,173.14,2.889]
[1729863868104,8.88121007,173.15,173.14,3.81030856]
[1729863868312,8.88121007,173.15,173.13,2.8892]
[1729863870222,8.88121007,173.15,173.1,8.88121007]
[1729863871019,8.88121007,173.15,173.11,3.8111121]
[1729863871216,8.88121007,173.15,173.12,3.8111121]
[1729863871411,8.88121007,173.15,173.13,2.8891]
[1729863872618,8.88121007,173.14,173.03,1.2592]
[1729863872816,8.88121007,173.08,173.05,3.81210148]
[1729863873013,8.88121007,173.08,173.06,3.81210148]
[1729863873218,8.88121007,173.08,173.01,1.2609]
[1729863873219,4.93,173.16,173.07,12.69331155]
[1729863873415,8.88121007,173.14,173.09,8.88121007]
[1729863873609,4.93,173.16,173.05,1.2774]
[1729863873610,8.88121007,173.12,173.11,2.8896]
[1729863873815,4.93,173.16,173.11,3.81210148]
[1729863874012,4.93,173.16,173.08,4.54]
[1729863874013,8.88121007,173.13,173.12,3.81210148]
[1729863874322,8.88121007,173.13,173.12,3.81069848]
[1729863874519,8.88121007,173.13,173.08,13.42121007]
[1729863874821,8.88121007,173.13,173.09,3.8103709]
[1729863875019,8.88121007,173.13,173.1,3.8103709]
[1729863875214,8.88121007,173.13,173.12,2.8894]
[1729863875522,8.88121007,173.13,173.09,3.81029988]
[1729863875720,8.88121007,173.1,173.05,14.69861007]
[1729863875922,8.88121007,173.1,173.09,2.8899]
[1729863876222,8.88121007,173.1,173.09,6.70039319]
[1729863876425,8.88121007,173.1,173.09,11.32039319]
[1729863876721,8.88121007,173.1,173.09,7.5099]
[1729863877115,4.93,173.16,173.11,2.8896]
[1729863877321,8.88121007,173.12,173.09,4.62]
[1729863877812,8.88121007,173.12,173.11,2.8896]
[1729863878220,13.44121007,173.12,173.09,4.62]
[1729863878425,8.88121007,173.1,173.09,4.62]
[1729863879725,8.88121007,173.12,173.09,4.62]
[1729863879926,8.88121007,173.12,173.11,2.8896]
[1729863880223,8.88121007,173.12,173.09,4.62]
[1729863880424,8.88121007,173.1,173.09,4.62]
[1729863882227,8.88121007,173.1,173.09,7.5099]
[1729863886321,1.2928,173.15,173.13,2.8892]
[1729863886523,8.88121007,173.14,173.09,4.62]
[1729863887431,8.88121007,173.12,173.09,4.62]
[1729863888034,8.88121007,173.12,173.11,2.8896]
[1729863889734,8.88121007,173.13,173.09,4.62]
[1729863889930,8.88121007,173.13,173.12,2.8894]
[1729863890631,8.88121007,173.15,173.14,2.8891]
[1729863891130,8.88121007,173.15,173.12,2.8893]
[1729863891336,8.88121007,173.13,173.09,4.62]
[1729863891630,8.88121007,173.13,173.1,1.44520408]
[1729863891829,8.88121007,173.13,173.09,4.62]
[1729863892034,8.88121007,173.13,173.12,2.8894]
[1729863894940,8.88121007,173.15,173.1,8.88121007]
[1729863895134,8.88121007,173.15,173.14,2.8891]
[1729863896239,0.39,173.16,173.15,2.8889]
[1729863901344,9.27121007,173.16,173.1,8.88121007]
[1729863901544,8.88121007,173.15,173.11,1.44514323]
[1729863901741,8.88121007,173.15,173.1,8.88121007]
[1729863902044,8.88121007,173.15,173.14,2.8891]
[1729863902749,8.88121007,173.15,173.12,2.8893]
[1729863902945,8.88121007,173.13,173.12,2.8893]
[1729863903250,8.88121007,173.14,173.09,8.88121007]
[1729863903446,8.88121007,173.14,173.13,2.8891]
[1729863905639,8.88121007,173.14,173.08,3.80174173]
[1729863905844,4.64,173.16,173.09,1.44531041]
[1729863906048,8.88121007,173.1,173.08,3.80174173]
[1729863906848,8.88121007,173.1,173.09,2.8899]
[1729863907044,8.88121007,173.11,173.09,2.8899]
[1729863907347,8.88121007,173.14,173.1,8.88121007]
[1729863907548,8.88121007,173.14,173.11,1.44523668]
[1729863907743,8.88121007,173.14,173.1,8.88121007]
[1729863907950,8.88121007,173.14,173.11,1.44523628]
[1729863908253,8.88121007,173.13,173.12,2.8894]
[1729863908449,8.88121007,173.13,173.08,8.88121007]
[1729863908450,8.88121007,173.14,173.09,8.88121007]
[1729863908752,8.88121007,173.14,173.1,1.4452289]
[1729863908945,8.88121007,173.14,173.09,8.88121007]
[1729863909145,8.88121007,173.14,173.07,5.8178]
[1729863909146,2.4421,173.2,173.12,8.88121007]
[1729863909448,2.4421,173.2,173.07,5.8178]
[1729863909449,8.88121007,173.18,173.14,8.88121007]
[1729863909648,8.88121007,173.18,173.13,8.88121007]
[1729863910051,8.88121007,173.18,173.16,2.8887]
[1729863910250,8.88121007,173.18,173.13,8.88121007]
[1729863910445,5.9118,173.22,173.15,8.88121007]
[1729863910645,8.88121007,173.2,173.15,8.88121007]
[1729863910856,8.88121007,173.2,173.19,2.8881]
[1729863911348,8.88121007,173.22,173.2,2.888]
[1729863911551,4.64,173.26,173.18,8.88121007]
[1729863911755,4.64,173.26,173.13,1.1752]
[1729863911756,8.88121007,173.24,173.2,8.88121007]
[1729863911954,8.88121007,173.25,173.2,8.88121007]
[1729863912148,8.88121007,173.25,173.16,4.64]
[1729863912149,8.88121007,173.24,173.19,8.88121007]
[1729863912350,8.88121007,173.23,173.19,8.88121007]
[1729863912554,4.64,173.27,173.19,8.88121007]
[1729863912555,8.88121007,173.24,173.19,8.88121007]
[1729863912755,8.88121007,173.24,173.2,8.88121007]
[1729863913257,0.39,173.23,173.22,2.8876]
[1729863913446,8.88121007,173.32,173.22,8.88121007]
[1729863913652,8.88121007,173.32,173.27,8.88121007]
[1729863913851,8.88121007,173.32,173.29,2.8864]
[1729863914053,8.88121007,173.32,173.27,8.88121007]
[1729863914253,5.8099,173.34,173.24,4.6]
[1729863914254,14.69111007,173.34,173.29,8.88121007]
[1729863914559,8.88121007,173.35,173.3,8.88121007]
[1729863914960,2.8856,173.35,173.31,11.76731007]
[1729863915163,4.6,173.36,173.3,8.88121007]
[1729863915456,2.5233,173.38,173.31,8.88121007]
[1729863915457,13.48121007,173.37,173.31,8.88121007]
[1729863916059,16.36661007,173.37,173.33,2.8858]
[1729863916266,4.6,173.37,173.28,18.46277862]
[1729863917553,13.86277862,173.34,173.29,2.8864]
[1729863917866,4.6,173.37,173.24,4.6]
[1729863917867,13.86277862,173.31,173.24,4.6]
[1729863918263,13.86277862,173.31,173.25,2.8872]
[1729863918458,13.86277862,173.3,173.25,2.8872]
[1729863919153,16.74967862,173.27,173.22,2.8876]
[1729863919558,2.8869,173.27,173.22,2.8876]
[1729863919766,16.74967862,173.27,173.22,2.8876]
[1729863920059,16.74967862,173.27,173.2,4.6]
[1729863920263,16.74967862,173.27,173.23,2.8876]
[1729863921171,13.86277862,173.27,173.2,4.6]
[1729863921363,4.6,173.29,173.21,13.86277862]
[1729863921568,18.46277862,173.32,173.21,13.86277862]
[1729863921769,7.4861,173.32,173.28,2.8868]
[1729863922174,7.4861,173.32,173.24,4.6]
[1729863922175,4.6,173.32,173.24,4.6]
[1729863922466,2.8864,173.3,173.26,2.887]
[1729863922873,2.8863,173.31,173.27,2.8868]
[1729863923077,13.86277862,173.32,173.24,4.6]
[1729863923371,96.8654039,173.45,173.26,13.86277862]
[1729863923372,4.6,173.34,173.26,13.86277862]
[1729863923577,2.8858,173.34,173.26,13.86277862]
[1729863923781,18.46277862,173.36,173.26,13.86277862]
[1729863924275,2.8858,173.34,173.3,2.8864]
[1729863926876,2.8858,173.34,173.26,13.86277862]
[1729863926877,13.86277862,173.36,173.26,13.86277862]
[1729863927073,15.08147862,173.39,173.28,13.86277862]
[1729863927379,7.1233,173.38,173.29,4.6]
[1729863927563,7.1233,173.38,173.34,2.8856]
[1729863927767,7.1233,173.38,173.29,4.6]
[1729863928477,4.58,173.4,173.3,13.86277862]
[1729863928673,4.58,173.4,173.3,17.67757862]
[1729863929071,2.885,173.39,173.35,2.8855]
[1729863929271,4.58,173.4,173.3,17.67757862]
[1729863929685,7.4649,173.4,173.3,17.67757862]
[1729863929973,4.58,173.4,173.3,17.67757862]
[1729863930175,2.8849,173.39,173.36,2.8854]
[1729863931267,2.8849,173.39,173.33,13.86277862]
[1729863931268,2.8849,173.39,173.35,2.8855]
[1729863933467,18.44277862,173.42,173.35,2.8855]
[1729863933671,2.8851,173.38,173.35,2.8855]
[1729863934370,18.44277862,173.42,173.35,2.8855]
[1729863934574,2.885,173.39,173.35,2.8855]
[1729863935480,2.8855,173.36,173.33,4.58]
[1729863935781,13.86277862,173.39,173.32,2.8861]
[1729863936175,13.86277862,173.37,173.28,4.58]
[1729863936373,13.86277862,173.37,173.31,2.8862]
[1729863936579,2.8857,173.35,173.31,2.8862]
[1729863936973,13.86277862,173.35,173.28,4.58]
[1729863937180,13.86277862,173.35,173.24,13.86277862]
[1729863937381,13.86277862,173.33,173.28,2.8867]
[1729863937873,13.86277862,173.33,173.25,4.58]
[1729863938075,13.86277862,173.33,173.27,2.8869]
[1729863938372,2.8864,173.3,173.27,2.8869]
[1729863938572,2.8864,173.3,173.23,1.2378]
[1729863938573,13.86277862,173.3,173.23,1.2378]
[1729863938774,13.86277862,173.28,173.23,2.8875]
[1729863939080,2.887,173.27,173.2,6.02413174]
[1729863939680,13.86277862,173.28,173.2,6.02413174]
[1729863939884,2.8872,173.26,173.2,4.58]
[1729863940181,13.86277862,173.28,173.2,9.19]
[1729863940383,18.44277862,173.3,173.2,10.63413853]
[1729863940578,18.44277862,173.3,173.25,2.8871]
[1729863941080,2.8867,173.29,173.25,2.8871]
[1729863943187,2.8867,173.29,173.21,4.58]
[1729863943880,13.86277862,173.28,173.2,4.61]
[1729863944181,13.86277862,173.25,173.2,4.61]
[1729863944386,16.75007862,173.25,173.22,2.8877]
[1729863944784,13.86277862,173.25,173.2,4.61]
[1729863945585,2.8876,173.23,173.2,7.4981]
[1729863945978,13.86277862,173.23,173.2,4.61]
[1729863946692,2.8878,173.22,173.2,4.61]
[1729863946895,13.86277862,173.23,173.2,4.61]
[1729863947091,16.75067862,173.21,173.2,4.61]
[1729863947284,13.86277862,173.21,173.12,4.6]
[1729863948195,2.8884,173.19,173.15,2.8888]
[1729863948594,2.8884,173.19,173.12,4.6]
[1729863948791,4.6,173.22,173.1,2.4083]
[1729863948792,13.86277862,173.18,173.1,2.4083]
[1729863948995,13.86277862,173.18,173.1,1.213]
[1729863949289,13.86277862,173.18,173.13,2.8891]
[1729863949290,2.8886,173.17,173.13,2.8891]
[1729863949495,2.8886,173.17,173.1,1.213]
[1729863949893,21.35127862,173.18,173.14,2.889]
[1729863950291,18.46277862,173.18,173.14,2.889]
[1729863950595,4.6,173.18,173.16,2.8886]
[1729863950891,13.86277862,173.2,173.16,2.8886]
[1729863951092,13.86277862,173.23,173.18,2.8884]
[1729863951304,4.6,173.22,173.12,13.86277862]
[1729863951598,2.8879,173.21,173.17,2.8885]